[Event "Titled Tuesday Blitz June 27 Early 2023"]
[White "Girya, Olga"]
[Black "NLLO777"]
[WhiteFideId "4195752"]
[WhiteElo "2610"]
[BlackElo "2478"]
[Result "1/2-1/2"]
[Round "7"]
[TimeControl "180+2"]
[Date "2023.06.27"]
[WhiteClock "0:02:12"]
[BlackClock "0:01:14"]
[Board "96"]

1. d4 {[%clk 0:03:00]}  Nf6 {[%clk 0:03:00]} 2. Nf3 {[%clk 0:03:00]}  g6 {[%clk 0:03:00]} 3. Bg5 {[%clk 0:03:00]}  Bg7 {[%clk 0:03:00]} 4. Nbd2 {[%clk 0:03:01]}  c5 {[%clk 0:02:59]} 5. Bxf6 {[%clk 0:02:56]}  exf6 {[%clk 0:02:56]} 6. dxc5 {[%clk 0:02:53]}  Na6 {[%clk 0:02:55]} 7. Ne4 {[%clk 0:02:43]}  O-O {[%clk 0:02:53]} 8. c3 {[%clk 0:02:36]}  f5 {[%clk 0:02:49]} 9. Nd6 {[%clk 0:02:35]}  Nxc5 {[%clk 0:02:49]} 10. e3 {[%clk 0:02:34]}  b6 {[%clk 0:01:14]} 11. Qd5 {[%clk 0:02:12]} 1/2-1/2


[Site "https://www.chess.com"]

[Event "Titled Tuesday Blitz June 27 Early 2023"]
[White "Kovalevsky, Stanislav"]
[Black "Ganiev, Roman"]
[WhiteFideId "13508598"]
[BlackFideId "4131452"]
[WhiteElo "2475"]
[BlackElo "2604"]
[Result "1-0"]
[Round "7"]
[TimeControl "180+2"]
[Date "2023.06.27"]
[WhiteClock "0:02:26"]
[BlackClock "0:00:00"]
[Board "98"]

1. c4 {[%clk 0:02:57]}  e5 {[%clk 0:02:59]} 2. Nc3 {[%clk 0:02:56]}  Nc6 {[%clk 0:02:57]} 3. g3 {[%clk 0:02:56]}  g6 {[%clk 0:02:56]} 4. h4 {[%clk 0:02:56]}  h5 {[%clk 0:02:56]} 5. d3 {[%clk 0:02:56]}  Bg7 {[%clk 0:02:53]} 6. Bg2 {[%clk 0:02:56]}  Nge7 {[%clk 0:02:52]} 7. Nf3 {[%clk 0:02:54]}  d6 {[%clk 0:02:51]} 8. O-O {[%clk 0:02:53]}  O-O {[%clk 0:02:49]} 9. a3 {[%clk 0:02:51]}  a5 {[%clk 0:02:48]} 10. Rb1 {[%clk 0:02:52]}  Be6 {[%clk 0:02:48]} 11. Ng5 {[%clk 0:02:50]}  Bg4 {[%clk 0:02:46]} 12. b4 {[%clk 0:02:45]}  axb4 {[%clk 0:02:47]} 13. axb4 {[%clk 0:02:46]}  f6 {[%clk 0:02:47]} 14. Nh3 {[%clk 0:02:30]}  Qc8 {[%clk 0:00:00]} 15. Kh2 {[%clk 0:02:26]} 1-0


[Site "https://www.chess.com"]

[Event "Titled Tuesday Blitz June 27 Early 2023"]
[White "MKlose11"]
[Black "Kielinkei"]
[WhiteElo "2601"]
[BlackElo "2472"]
[Result "1/2-1/2"]
[Round "7"]
[TimeControl "180+2"]
[Date "2023.06.27"]
[WhiteClock "0:01:46"]
[BlackClock "0:01:13"]
[Board "100"]

1. e4 {[%clk 0:02:49]}  c5 {[%clk 0:02:58]} 2. Nc3 {[%clk 0:02:49]}  e6 {[%clk 0:02:58]} 3. g3 {[%clk 0:02:49]}  Nc6 {[%clk 0:02:55]} 4. d3 {[%clk 0:02:49]}  d5 {[%clk 0:02:52]} 5. Bg2 {[%clk 0:02:49]}  dxe4 {[%clk 0:02:50]} 6. Nxe4 {[%clk 0:02:46]}  Nf6 {[%clk 0:02:50]} 7. Be3 {[%clk 0:02:45]}  Nd5 {[%clk 0:02:39]} 8. Bd2 {[%clk 0:02:41]}  Be7 {[%clk 0:02:38]} 9. Ne2 {[%clk 0:02:41]}  O-O {[%clk 0:02:38]} 10. O-O {[%clk 0:02:31]}  Qc7 {[%clk 0:01:13]} 11. N2c3 {[%clk 0:01:46]} 1/2-1/2


[Site "https://www.chess.com"]

[Event "Titled Tuesday Blitz June 27 Early 2023"]
[White "Tokman, Ariel"]
[Black "Niekras, Dawid"]
[WhiteFideId "117420"]
[BlackFideId "1160451"]
[WhiteElo "2467"]
[BlackElo "2597"]
[Result "1/2-1/2"]
[Round "7"]
[TimeControl "180+2"]
[Date "2023.06.27"]
[WhiteClock "0:00:51"]
[BlackClock "0:02:07"]
[Board "102"]

1. e4 {[%clk 0:03:00]}  c5 {[%clk 0:03:00]} 2. Nf3 {[%clk 0:03:01]}  d6 {[%clk 0:03:00]} 3. c3 {[%clk 0:02:56]}  Nf6 {[%clk 0:03:00]} 4. Bd3 {[%clk 0:02:56]}  Nc6 {[%clk 0:02:54]} 5. O-O {[%clk 0:02:56]}  g6 {[%clk 0:02:38]} 6. h3 {[%clk 0:02:53]}  Bg7 {[%clk 0:02:38]} 7. Re1 {[%clk 0:02:54]}  O-O {[%clk 0:02:38]} 8. Bf1 {[%clk 0:02:52]}  e5 {[%clk 0:02:36]} 9. a4 {[%clk 0:02:42]}  Re8 {[%clk 0:02:30]} 10. Na3 {[%clk 0:00:51]}  d5 {[%clk 0:02:07]} 1/2-1/2


[Site "https://www.chess.com"]

[Event "Titled Tuesday Blitz June 27 Early 2023"]
[White "gueraumasague"]
[Black "robertoalejandro10"]
[WhiteElo "2466"]
[BlackElo "2596"]
[Result "1/2-1/2"]
[Round "7"]
[TimeControl "180+2"]
[Date "2023.06.27"]
[WhiteClock "0:01:03"]
[BlackClock "0:02:05"]
[Board "103"]

1. e4 {[%clk 0:03:00]}  c5 {[%clk 0:02:56]} 2. Nc3 {[%clk 0:03:01]}  g6 {[%clk 0:02:55]} 3. Bc4 {[%clk 0:02:57]}  Bg7 {[%clk 0:02:55]} 4. d3 {[%clk 0:02:56]}  Nc6 {[%clk 0:02:55]} 5. a3 {[%clk 0:02:57]}  e6 {[%clk 0:02:53]} 6. Ba2 {[%clk 0:02:57]}  Nge7 {[%clk 0:02:53]} 7. h4 {[%clk 0:02:57]}  h5 {[%clk 0:02:51]} 8. Nh3 {[%clk 0:02:57]}  d6 {[%clk 0:02:49]} 9. Ng5 {[%clk 0:02:56]}  Nd4 {[%clk 0:02:44]} 10. Ne2 {[%clk 0:02:46]}  d5 {[%clk 0:02:38]} 11. f3 {[%clk 0:01:03]}  Qa5+ {[%clk 0:02:05]} 1/2-1/2


[Site "https://www.chess.com"]

[Event "Titled Tuesday Blitz June 27 Early 2023"]
[White "Lopez Gracia, Fernando"]
[Black "Komov, Roman"]
[WhiteFideId "2207184"]
[BlackFideId "24175714"]
[WhiteElo "2463"]
[BlackElo "2595"]
[Result "1/2-1/2"]
[Round "7"]
[TimeControl "180+2"]
[Date "2023.06.27"]
[WhiteClock "0:02:16"]
[BlackClock "0:01:01"]
[Board "104"]

1. c4 {[%clk 0:03:00]}  e5 {[%clk 0:02:59]} 2. Nc3 {[%clk 0:03:01]}  Bb4 {[%clk 0:02:58]} 3. Nd5 {[%clk 0:03:01]}  Be7 {[%clk 0:02:59]} 4. d4 {[%clk 0:03:00]}  exd4 {[%clk 0:02:59]} 5. Qxd4 {[%clk 0:02:59]}  Nf6 {[%clk 0:03:00]} 6. Nxe7 {[%clk 0:03:00]}  Qxe7 {[%clk 0:03:01]} 7. Nf3 {[%clk 0:02:56]}  Nc6 {[%clk 0:03:01]} 8. Qd3 {[%clk 0:02:49]}  d6 {[%clk 0:02:58]} 9. Bd2 {[%clk 0:02:49]}  Bg4 {[%clk 0:02:53]} 10. e3 {[%clk 0:02:47]}  O-O {[%clk 0:02:48]} 11. Be2 {[%clk 0:02:46]}  Rfe8 {[%clk 0:02:46]} 12. O-O {[%clk 0:02:45]}  Rad8 {[%clk 0:02:46]} 13. Bc3 {[%clk 0:02:45]}  Ne4 {[%clk 0:01:01]} 14. h3 {[%clk 0:02:16]} 1/2-1/2


[Site "https://www.chess.com"]

[Event "Titled Tuesday Blitz June 27 Early 2023"]
[White "Ibadov, Dashgyn"]
[Black "Titichoca Daza, Daniel"]
[WhiteFideId "24107514"]
[BlackFideId "3309550"]
[WhiteElo "2593"]
[BlackElo "2449"]
[Result "1/2-1/2"]
[Round "7"]
[TimeControl "180+2"]
[Date "2023.06.27"]
[WhiteClock "0:02:12"]
[BlackClock "0:01:17"]
[Board "106"]

1. e4 {[%clk 0:03:00]}  e5 {[%clk 0:02:58]} 2. Nf3 {[%clk 0:03:01]}  Nc6 {[%clk 0:02:57]} 3. d4 {[%clk 0:03:02]}  exd4 {[%clk 0:02:57]} 4. Nxd4 {[%clk 0:03:02]}  Nf6 {[%clk 0:02:55]} 5. Nxc6 {[%clk 0:03:02]}  bxc6 {[%clk 0:02:54]} 6. e5 {[%clk 0:03:02]}  Qe7 {[%clk 0:02:52]} 7. Qe2 {[%clk 0:03:02]}  Nd5 {[%clk 0:02:50]} 8. c4 {[%clk 0:03:03]}  Ba6 {[%clk 0:02:49]} 9. b3 {[%clk 0:03:04]}  f6 {[%clk 0:02:45]} 10. exf6 {[%clk 0:03:02]}  Nxf6 {[%clk 0:02:38]} 11. Bb2 {[%clk 0:02:59]}  Qxe2+ {[%clk 0:02:34]} 12. Bxe2 {[%clk 0:02:59]}  Bb4+ {[%clk 0:02:35]} 13. Bc3 {[%clk 0:02:48]}  Bxc3+ {[%clk 0:01:17]} 14. Nxc3 {[%clk 0:02:12]} 1/2-1/2


[Site "https://www.chess.com"]

[Event "Titled Tuesday Blitz June 27 Early 2023"]
[White "Luukkonen, Tommi"]
[Black "WindWhistler11"]
[WhiteFideId "501808"]
[WhiteElo "2440"]
[BlackElo "2573"]
[Result "1-0"]
[Round "7"]
[TimeControl "180+2"]
[Date "2023.06.27"]
[WhiteClock "0:02:36"]
[BlackClock "0:00:00"]
[Board "109"]

1. e4 {[%clk 0:03:00]}  e6 {[%clk 0:02:45]} 2. d4 {[%clk 0:03:00]}  d5 {[%clk 0:02:46]} 3. Nc3 {[%clk 0:03:01]}  Nc6 {[%clk 0:02:46]} 4. Nf3 {[%clk 0:02:57]}  Nf6 {[%clk 0:02:45]} 5. e5 {[%clk 0:02:58]}  Nd7 {[%clk 0:02:43]} 6. Be2 {[%clk 0:02:59]}  f6 {[%clk 0:02:42]} 7. exf6 {[%clk 0:02:58]}  Qxf6 {[%clk 0:02:42]} 8. Nb5 {[%clk 0:02:53]}  Bd6 {[%clk 0:02:36]} 9. Nxd6+ {[%clk 0:02:52]}  cxd6 {[%clk 0:02:37]} 10. O-O {[%clk 0:02:51]}  O-O {[%clk 0:02:35]} 11. c4 {[%clk 0:02:49]}  dxc4 {[%clk 0:02:26]} 12. Bxc4 {[%clk 0:02:38]}  Nb6 {[%clk 0:00:00]} 13. Bb3 {[%clk 0:02:36]} 1-0


[Site "https://www.chess.com"]

[Event "Titled Tuesday Blitz June 27 Early 2023"]
[White "Domingo Nunez, Ruben"]
[Black "Ai, Evan"]
[WhiteFideId "22245570"]
[BlackFideId "2094770"]
[WhiteElo "2572"]
[BlackElo "2424"]
[Result "1/2-1/2"]
[Round "7"]
[TimeControl "180+2"]
[Date "2023.06.27"]
[WhiteClock "0:01:38"]
[BlackClock "0:01:41"]
[Board "110"]

1. Nf3 {[%clk 0:02:57]}  Nf6 {[%clk 0:02:57]} 2. b3 {[%clk 0:02:56]}  e6 {[%clk 0:02:56]} 3. Bb2 {[%clk 0:02:57]}  b6 {[%clk 0:02:56]} 4. g3 {[%clk 0:02:58]}  Bb7 {[%clk 0:02:56]} 5. Bg2 {[%clk 0:02:59]}  d5 {[%clk 0:02:55]} 6. O-O {[%clk 0:03:00]}  Nbd7 {[%clk 0:02:55]} 7. d3 {[%clk 0:03:00]}  c5 {[%clk 0:02:55]} 8. Nbd2 {[%clk 0:03:01]}  Bd6 {[%clk 0:02:54]} 9. e4 {[%clk 0:03:01]}  dxe4 {[%clk 0:02:35]} 10. Ng5 {[%clk 0:03:01]}  Qc7 {[%clk 0:02:23]} 11. Nc4 {[%clk 0:02:58]}  Be7 {[%clk 0:02:16]} 12. Nxe4 {[%clk 0:01:38]}  O-O {[%clk 0:01:41]} 1/2-1/2


[Site "https://www.chess.com"]

[Event "Titled Tuesday Blitz June 27 Early 2023"]
[White "Gontcharov, Vladislav"]
[Black "Melikhov, Evgeny V."]
[WhiteFideId "4123492"]
[BlackFideId "4122046"]
[WhiteElo "2565"]
[BlackElo "2374"]
[Result "1/2-1/2"]
[Round "7"]
[TimeControl "180+2"]
[Date "2023.06.27"]
[WhiteClock "0:01:45"]
[BlackClock "0:01:15"]
[Board "114"]

1. d4 {[%clk 0:03:00]}  Nf6 {[%clk 0:02:59]} 2. c4 {[%clk 0:03:01]}  e6 {[%clk 0:02:59]} 3. Nc3 {[%clk 0:03:01]}  Bb4 {[%clk 0:02:59]} 4. e3 {[%clk 0:03:01]}  O-O {[%clk 0:02:58]} 5. Bd3 {[%clk 0:03:01]}  d5 {[%clk 0:02:57]} 6. Ne2 {[%clk 0:02:58]}  dxc4 {[%clk 0:02:55]} 7. Bxc4 {[%clk 0:02:58]}  Nc6 {[%clk 0:02:54]} 8. a3 {[%clk 0:02:51]}  Bd6 {[%clk 0:02:53]} 9. b4 {[%clk 0:02:50]}  e5 {[%clk 0:02:50]} 10. d5 {[%clk 0:02:48]}  Ne7 {[%clk 0:02:49]} 11. e4 {[%clk 0:02:25]}  a6 {[%clk 0:01:15]} 12. O-O {[%clk 0:01:45]} 1/2-1/2


[Site "https://www.chess.com"]

[Event "Titled Tuesday Blitz June 27 Early 2023"]
[White "chess123456s"]
[Black "Dishman, Stephen"]
[BlackFideId "403024"]
[WhiteElo "2560"]
[BlackElo "2370"]
[Result "0-1"]
[Round "7"]
[TimeControl "180+2"]
[Date "2023.06.27"]
[WhiteClock "0:00:00"]
[BlackClock "0:01:50"]
[Board "116"]

1. d4 {[%clk 0:03:00]}  d5 {[%clk 0:02:59]} 2. Nc3 {[%clk 0:03:01]}  Nf6 {[%clk 0:02:58]} 3. Bf4 {[%clk 0:03:01]}  e6 {[%clk 0:02:57]} 4. Nb5 {[%clk 0:03:01]}  Bb4+ {[%clk 0:02:57]} 5. c3 {[%clk 0:03:02]}  Ba5 {[%clk 0:02:57]} 6. a4 {[%clk 0:03:02]}  a6 {[%clk 0:02:56]} 7. b4 {[%clk 0:03:03]}  Nc6 {[%clk 0:02:48]} 8. bxa5 {[%clk 0:03:02]}  axb5 {[%clk 0:02:48]} 9. axb5 {[%clk 0:03:03]}  Nxa5 {[%clk 0:02:47]} 10. e3 {[%clk 0:03:03]}  Ne4 {[%clk 0:02:36]} 11. Qc2 {[%clk 0:02:44]}  Qe7 {[%clk 0:02:14]} 12. Bd3 {[%clk 0:00:00]}  Nd6 {[%clk 0:01:50]} 0-1


[Site "https://www.chess.com"]

[Event "Titled Tuesday Blitz June 27 Early 2023"]
[White "Rodchenkov, Sergey D."]
[Black "EdmundPlayer"]
[WhiteFideId "4168712"]
[WhiteElo "2552"]
[BlackElo "2298"]
[Result "1/2-1/2"]
[Round "7"]
[TimeControl "180+2"]
[Date "2023.06.27"]
[WhiteClock "0:02:31"]
[BlackClock "0:00:29"]
[Board "119"]

1. e4 {[%clk 0:03:00]}  e5 {[%clk 0:02:59]} 2. Nf3 {[%clk 0:03:01]}  Nc6 {[%clk 0:02:59]} 3. Bc4 {[%clk 0:03:02]}  Bc5 {[%clk 0:02:58]} 4. O-O {[%clk 0:03:01]}  Nf6 {[%clk 0:02:55]} 5. d3 {[%clk 0:03:00]}  d6 {[%clk 0:02:54]} 6. Nbd2 {[%clk 0:03:00]}  a5 {[%clk 0:02:50]} 7. c3 {[%clk 0:03:00]}  O-O {[%clk 0:02:49]} 8. h3 {[%clk 0:03:00]}  h6 {[%clk 0:02:49]} 9. Re1 {[%clk 0:03:00]}  Be6 {[%clk 0:02:44]} 10. Bb5 {[%clk 0:03:00]}  Na7 {[%clk 0:00:29]} 11. Ba4 {[%clk 0:02:31]} 1/2-1/2


[Site "https://www.chess.com"]

[Event "Titled Tuesday Blitz June 27 Early 2023"]
[White "Molina Carretero, Daniel"]
[Black "Adla, Diego"]
[WhiteFideId "32071914"]
[BlackFideId "100072"]
[WhiteElo "2409"]
[BlackElo "2538"]
[Result "1/2-1/2"]
[Round "7"]
[TimeControl "180+2"]
[Date "2023.06.27"]
[WhiteClock "0:01:55"]
[BlackClock "0:01:13"]
[Board "125"]

1. c4 {[%clk 0:03:00]}  e6 {[%clk 0:02:59]} 2. Nf3 {[%clk 0:03:00]}  d5 {[%clk 0:02:58]} 3. b3 {[%clk 0:03:01]}  Be7 {[%clk 0:02:56]} 4. Bb2 {[%clk 0:02:59]}  Bf6 {[%clk 0:02:56]} 5. Bxf6 {[%clk 0:02:52]}  Nxf6 {[%clk 0:02:57]} 6. g3 {[%clk 0:02:43]}  c5 {[%clk 0:02:56]} 7. Bg2 {[%clk 0:02:43]}  Nc6 {[%clk 0:02:54]} 8. O-O {[%clk 0:02:42]}  O-O {[%clk 0:02:54]} 9. cxd5 {[%clk 0:02:33]}  Nxd5 {[%clk 0:02:53]} 10. Nc3 {[%clk 0:02:30]}  b6 {[%clk 0:02:52]} 11. Nxd5 {[%clk 0:02:25]}  Qxd5 {[%clk 0:01:13]} 12. d4 {[%clk 0:01:55]} 1/2-1/2


[Site "https://www.chess.com"]

[Event "Titled Tuesday Blitz June 27 Early 2023"]
[White "Kuznetsov, Mikhail"]
[Black "Kuzmin, Roman"]
[WhiteFideId "4117190"]
[BlackFideId "44134932"]
[WhiteElo "2400"]
[BlackElo "2531"]
[Result "1/2-1/2"]
[Round "7"]
[TimeControl "180+2"]
[Date "2023.06.27"]
[WhiteClock "0:01:10"]
[BlackClock "0:02:29"]
[Board "126"]

1. d4 {[%clk 0:02:59]}  Nf6 {[%clk 0:02:59]} 2. Nf3 {[%clk 0:02:57]}  e6 {[%clk 0:02:59]} 3. g3 {[%clk 0:02:56]}  d5 {[%clk 0:03:00]} 4. Bg2 {[%clk 0:02:56]}  Be7 {[%clk 0:03:01]} 5. O-O {[%clk 0:02:57]}  O-O {[%clk 0:03:02]} 6. c4 {[%clk 0:02:58]}  Nbd7 {[%clk 0:03:02]} 7. cxd5 {[%clk 0:02:56]}  exd5 {[%clk 0:03:03]} 8. Nc3 {[%clk 0:02:56]}  c6 {[%clk 0:03:03]} 9. Bf4 {[%clk 0:02:50]}  Re8 {[%clk 0:02:51]} 10. Ne5 {[%clk 0:02:48]}  Nxe5 {[%clk 0:02:46]} 11. Bxe5 {[%clk 0:02:46]}  Bf5 {[%clk 0:02:43]} 12. Bxf6 {[%clk 0:02:45]}  Bxf6 {[%clk 0:02:43]} 13. e3 {[%clk 0:01:10]}  a5 {[%clk 0:02:29]} 1/2-1/2


[Site "https://www.chess.com"]

[Event "Titled Tuesday Blitz June 27 Early 2023"]
[White "Glavina, Pablo"]
[Black "Droin, Augustin"]
[WhiteFideId "100234"]
[BlackFideId "45105987"]
[WhiteElo "2375"]
[BlackElo "2527"]
[Result "1/2-1/2"]
[Round "7"]
[TimeControl "180+2"]
[Date "2023.06.27"]
[WhiteClock "0:00:32"]
[BlackClock "0:02:40"]
[Board "127"]

1. c4 {[%clk 0:03:00]}  e5 {[%clk 0:02:59]} 2. Nc3 {[%clk 0:02:55]}  Nf6 {[%clk 0:02:56]} 3. Nf3 {[%clk 0:02:53]}  e4 {[%clk 0:02:57]} 4. Ng5 {[%clk 0:02:49]}  c6 {[%clk 0:02:56]} 5. Ngxe4 {[%clk 0:02:38]}  Nxe4 {[%clk 0:02:56]} 6. Nxe4 {[%clk 0:02:39]}  d5 {[%clk 0:02:57]} 7. cxd5 {[%clk 0:02:35]}  cxd5 {[%clk 0:02:58]} 8. Ng3 {[%clk 0:02:32]}  h5 {[%clk 0:02:58]} 9. h4 {[%clk 0:02:30]}  Bd6 {[%clk 0:02:58]} 10. e3 {[%clk 0:02:23]}  Bxg3 {[%clk 0:02:57]} 11. fxg3 {[%clk 0:02:24]}  Nc6 {[%clk 0:02:58]} 12. Bb5 {[%clk 0:00:32]}  Qd6 {[%clk 0:02:40]} 1/2-1/2


[Site "https://www.chess.com"]

[Event "Titled Tuesday Blitz June 27 Early 2023"]
[White "Tarasova, Viktoriya"]
[Black "Yelisieiev, Yevhenii"]
[WhiteFideId "4175840"]
[BlackFideId "14139642"]
[WhiteElo "2365"]
[BlackElo "2516"]
[Result "1/2-1/2"]
[Round "7"]
[TimeControl "180+2"]
[Date "2023.06.27"]
[WhiteClock "0:00:47"]
[BlackClock "0:02:32"]
[Board "129"]

1. d4 {[%clk 0:03:00]}  d6 {[%clk 0:03:00]} 2. c4 {[%clk 0:03:00]}  Nf6 {[%clk 0:03:01]} 3. Nc3 {[%clk 0:03:00]}  e5 {[%clk 0:03:02]} 4. Nf3 {[%clk 0:02:54]}  Nbd7 {[%clk 0:03:01]} 5. e4 {[%clk 0:02:54]}  Be7 {[%clk 0:03:01]} 6. Be2 {[%clk 0:02:54]}  O-O {[%clk 0:03:02]} 7. O-O {[%clk 0:02:54]}  c6 {[%clk 0:03:02]} 8. h3 {[%clk 0:02:52]}  a6 {[%clk 0:03:03]} 9. a4 {[%clk 0:02:48]}  a5 {[%clk 0:03:03]} 10. Be3 {[%clk 0:02:47]}  Qc7 {[%clk 0:03:02]} 11. Qd2 {[%clk 0:02:47]}  Nb8 {[%clk 0:03:03]} 12. Rfd1 {[%clk 0:02:39]}  Na6 {[%clk 0:03:02]} 13. Rac1 {[%clk 0:02:36]}  Re8 {[%clk 0:02:57]} 14. Bf1 {[%clk 0:00:47]}  Nd7 {[%clk 0:02:32]} 1/2-1/2


[Site "https://www.chess.com"]

[Event "Titled Tuesday Blitz June 27 Early 2023"]
[White "Shubenkova, Veronika"]
[Black "Rosenberg, Evan S"]
[WhiteFideId "44124040"]
[BlackFideId "2019299"]
[WhiteElo "2507"]
[BlackElo "2347"]
[Result "1/2-1/2"]
[Round "7"]
[TimeControl "180+2"]
[Date "2023.06.27"]
[WhiteClock "0:02:46"]
[BlackClock "0:00:32"]
[Board "132"]

1. e4 {[%clk 0:03:00]}  c5 {[%clk 0:02:59]} 2. Nc3 {[%clk 0:03:00]}  g6 {[%clk 0:02:59]} 3. g3 {[%clk 0:03:01]}  Bg7 {[%clk 0:02:58]} 4. Bg2 {[%clk 0:03:02]}  Nc6 {[%clk 0:02:57]} 5. d3 {[%clk 0:03:03]}  d6 {[%clk 0:02:57]} 6. f4 {[%clk 0:03:03]}  e6 {[%clk 0:02:56]} 7. Nf3 {[%clk 0:03:04]}  Nge7 {[%clk 0:02:56]} 8. Rb1 {[%clk 0:03:04]}  O-O {[%clk 0:02:54]} 9. Ne2 {[%clk 0:03:05]}  b5 {[%clk 0:02:52]} 10. O-O {[%clk 0:03:04]}  b4 {[%clk 0:02:51]} 11. Be3 {[%clk 0:03:03]}  Rb8 {[%clk 0:02:47]} 12. h3 {[%clk 0:03:02]}  a5 {[%clk 0:02:47]} 13. g4 {[%clk 0:03:02]}  a4 {[%clk 0:02:48]} 14. b3 {[%clk 0:03:01]}  Ba6 {[%clk 0:02:42]} 15. Ng3 {[%clk 0:02:59]}  Nd4 {[%clk 0:02:41]} 16. Nxd4 {[%clk 0:02:59]}  cxd4 {[%clk 0:02:39]} 17. Bd2 {[%clk 0:02:59]}  d5 {[%clk 0:00:32]} 18. f5 {[%clk 0:02:46]} 1/2-1/2


[Site "https://www.chess.com"]

[Event "Titled Tuesday Blitz June 27 Early 2023"]
[White "Mikhaylova, Irina"]
[Black "Erzhanov, Arman"]
[WhiteFideId "4109040"]
[BlackFideId "4138821"]
[WhiteElo "2310"]
[BlackElo "2498"]
[Result "1-0"]
[Round "7"]
[TimeControl "180+2"]
[Date "2023.06.27"]
[WhiteClock "0:01:52"]
[BlackClock "0:00:00"]
[Board "134"]

1. d4 {[%clk 0:03:00]}  d6 {[%clk 0:03:00]} 2. Nf3 {[%clk 0:03:01]}  g6 {[%clk 0:02:59]} 3. c4 {[%clk 0:03:01]}  Bg7 {[%clk 0:02:59]} 4. Nc3 {[%clk 0:03:01]}  e5 {[%clk 0:03:00]} 5. e4 {[%clk 0:03:01]}  Bg4 {[%clk 0:02:59]} 6. d5 {[%clk 0:03:01]}  h5 {[%clk 0:02:59]} 7. Be2 {[%clk 0:03:01]}  Nd7 {[%clk 0:02:58]} 8. Be3 {[%clk 0:03:00]}  a5 {[%clk 0:02:56]} 9. a3 {[%clk 0:02:53]}  Bh6 {[%clk 0:02:54]} 10. Bxh6 {[%clk 0:02:46]}  Nxh6 {[%clk 0:02:54]} 11. b4 {[%clk 0:02:46]}  b6 {[%clk 0:02:52]} 12. h3 {[%clk 0:02:40]}  axb4 {[%clk 0:02:52]} 13. axb4 {[%clk 0:02:39]}  Bxf3 {[%clk 0:02:52]} 14. Bxf3 {[%clk 0:02:33]}  O-O {[%clk 0:00:00]} 15. O-O {[%clk 0:01:52]} 1-0


[Site "https://www.chess.com"]

[Event "Titled Tuesday Blitz June 27 Early 2023"]
[White "Miladinovic, Igor"]
[Black "Large, Peter G"]
[WhiteFideId "4203380"]
[BlackFideId "400866"]
[WhiteElo "2861"]
[BlackElo "2417"]
[Result "1-0"]
[Round "7"]
[TimeControl "180+2"]
[Date "2023.06.27"]
[WhiteClock "0:02:37"]
[BlackClock "0:00:00"]
[Board "142"]

1. d4 {[%clk 0:03:00]}  e6 {[%clk 0:02:58]} 2. e4 {[%clk 0:03:00]}  d5 {[%clk 0:02:58]} 3. Nc3 {[%clk 0:03:00]}  Bb4 {[%clk 0:02:57]} 4. a3 {[%clk 0:03:00]}  Bxc3+ {[%clk 0:02:53]} 5. bxc3 {[%clk 0:03:01]}  Ne7 {[%clk 0:02:53]} 6. Bd3 {[%clk 0:02:59]}  b6 {[%clk 0:02:50]} 7. Ne2 {[%clk 0:02:58]}  Ba6 {[%clk 0:02:48]} 8. Ng3 {[%clk 0:02:56]}  O-O {[%clk 0:02:43]} 9. h4 {[%clk 0:02:53]}  Bxd3 {[%clk 0:02:34]} 10. cxd3 {[%clk 0:02:53]}  Nd7 {[%clk 0:02:27]} 11. h5 {[%clk 0:02:46]}  c5 {[%clk 0:00:00]} 12. h6 {[%clk 0:02:37]} 1-0


[Site "https://www.chess.com"]

[Event "Titled Tuesday Blitz June 27 Early 2023"]
[White "Pinto, Daniel"]
[Black "Orlov, Georgi"]
[WhiteFideId "3303144"]
[BlackFideId "2011271"]
[WhiteElo "2395"]
[BlackElo "2580"]
[Result "1/2-1/2"]
[Round "7"]
[TimeControl "180+2"]
[Date "2023.06.27"]
[WhiteClock "0:00:11"]
[BlackClock "0:02:27"]
[Board "145"]

1. e4 {[%clk 0:03:00]}  e6 {[%clk 0:02:58]} 2. d4 {[%clk 0:03:00]}  d5 {[%clk 0:02:58]} 3. Nd2 {[%clk 0:03:01]}  Be7 {[%clk 0:02:58]} 4. Ngf3 {[%clk 0:03:00]}  Nf6 {[%clk 0:02:55]} 5. Bd3 {[%clk 0:03:00]}  Nfd7 {[%clk 0:02:55]} 6. c4 {[%clk 0:02:52]}  dxe4 {[%clk 0:02:48]} 7. Nxe4 {[%clk 0:02:50]}  b6 {[%clk 0:02:43]} 8. O-O {[%clk 0:02:42]}  Bb7 {[%clk 0:02:43]} 9. b3 {[%clk 0:02:42]}  O-O {[%clk 0:02:42]} 10. Bb2 {[%clk 0:02:42]}  a5 {[%clk 0:02:39]} 11. a3 {[%clk 0:00:11]}  Na6 {[%clk 0:02:27]} 1/2-1/2


[Site "https://www.chess.com"]

[Event "Titled Tuesday Blitz June 27 Early 2023"]
[White "Topalov, Aleksandar"]
[Black "O`Gorman, Tom"]
[WhiteFideId "925659"]
[BlackFideId "2508249"]
[WhiteElo "2393"]
[BlackElo "2569"]
[Result "1-0"]
[Round "7"]
[TimeControl "180+2"]
[Date "2023.06.27"]
[WhiteClock "0:02:03"]
[BlackClock "0:00:00"]
[Board "146"]

1. b3 {[%clk 0:03:00]}  c5 {[%clk 0:02:55]} 2. Bb2 {[%clk 0:02:55]}  Nc6 {[%clk 0:02:55]} 3. Nf3 {[%clk 0:02:54]}  e6 {[%clk 0:02:51]} 4. c4 {[%clk 0:02:52]}  Nf6 {[%clk 0:02:52]} 5. e3 {[%clk 0:02:52]}  Be7 {[%clk 0:02:51]} 6. Be2 {[%clk 0:02:52]}  O-O {[%clk 0:02:51]} 7. O-O {[%clk 0:02:52]}  b6 {[%clk 0:02:51]} 8. Nc3 {[%clk 0:02:49]}  Bb7 {[%clk 0:02:51]} 9. d4 {[%clk 0:02:49]}  cxd4 {[%clk 0:02:51]} 10. Nxd4 {[%clk 0:02:49]}  Nxd4 {[%clk 0:02:51]} 11. Qxd4 {[%clk 0:02:49]}  d6 {[%clk 0:02:51]} 12. Bf3 {[%clk 0:02:45]}  Qc7 {[%clk 0:02:50]} 13. Nb5 {[%clk 0:02:41]}  Qd7 {[%clk 0:02:50]} 14. Bxb7 {[%clk 0:02:39]}  Qxb7 {[%clk 0:02:51]} 15. Nxd6 {[%clk 0:02:34]}  Qc6 {[%clk 0:00:00]} 16. Nb5 {[%clk 0:02:03]} 1-0


[Site "https://www.chess.com"]